[Event "Titled Tuesday Blitz August 16 Late 2022"]
[White "Chernomordik, Pavel"]
[Black "Martic, Ivan"]
[WhiteFideId "2804530"]
[BlackFideId "929301"]
[WhiteElo "2217"]
[BlackElo "2355"]
[Result "0-1"]
[Round "11"]
[TimeControl "180+1"]
[Date "2022.08.18"]
[WhiteClock "0:00:00"]
[BlackClock "0:00:00"]

1. e4 {[%clk 0:00:00]}  c5 {[%clk 0:00:00]} 2. Nc3 {[%clk 0:00:00]}  a6 {[%clk 0:00:00]} 3. g3 {[%clk 0:00:00]}  b5 {[%clk 0:00:00]} 4. Qe2 {[%clk 0:00:00]}  Bb7 {[%clk 0:00:00]} 5. Bg2 {[%clk 0:00:00]}  e6 {[%clk 0:00:00]} 6. f4 {[%clk 0:00:00]}  Nc6 {[%clk 0:00:00]} 7. Nf3 {[%clk 0:00:00]}  Rc8 {[%clk 0:00:00]} 8. O-O {[%clk 0:00:00]}  Nd4 {[%clk 0:00:00]} 9. Qd3 {[%clk 0:00:00]}  c4 {[%clk 0:00:00]} 10. Qe3 {[%clk 0:00:00]}  Nxc2 {[%clk 0:00:00]} 11. Qe2 {[%clk 0:00:00]}  Nxa1 {[%clk 0:00:00]} 12. Qd1 {[%clk 0:00:00]}  Bc5+ {[%clk 0:00:00]} 13. d4 {[%clk 0:00:00]}  cxd3+ {[%clk 0:00:00]} 14. Kh1 {[%clk 0:00:00]}  Nc2 {[%clk 0:00:00]} 15. a3 {[%clk 0:00:00]}  Ne3 {[%clk 0:00:00]} 16. Bxe3 {[%clk 0:00:00]}  Bxe3 {[%clk 0:00:00]} 17. Qxd3 {[%clk 0:00:00]}  Ba7 {[%clk 0:00:00]} 18. f5 {[%clk 0:00:00]}  Nf6 {[%clk 0:00:00]} 19. e5 {[%clk 0:00:00]}  Ng4 {[%clk 0:00:00]} 20. Qd2 {[%clk 0:00:00]}  Ne3 {[%clk 0:00:00]} 21. Re1 {[%clk 0:00:00]}  Nxg2 {[%clk 0:00:00]} 22. Kxg2 {[%clk 0:00:00]}  exf5 {[%clk 0:00:00]} 23. Nd5 {[%clk 0:00:00]}  Bxd5 {[%clk 0:00:00]} 24. Qxd5 {[%clk 0:00:00]}  Rc2+ {[%clk 0:00:00]} 25. Kh3 {[%clk 0:00:00]}  O-O {[%clk 0:00:00]} 26. Qd3 {[%clk 0:00:00]}  Qc8 {[%clk 0:00:00]} 27. Ng5 {[%clk 0:00:00]}  h6 {[%clk 0:00:00]} 28. Nf3 {[%clk 0:00:00]}  g6 {[%clk 0:00:00]} 29. g4 {[%clk 0:00:00]}  fxg4+ {[%clk 0:00:00]} 30. Kxg4 {[%clk 0:00:00]}  Qc4+ {[%clk 0:00:00]} 31. Qxc4 {[%clk 0:00:00]}  Rxc4+ {[%clk 0:00:00]} 32. Kg3 {[%clk 0:00:00]}  Rc2 {[%clk 0:00:00]} 0-1


[Site "https://www.chess.com"]

[Event "Titled Tuesday Blitz August 16 Late 2022"]
[White "Chigaev, Maksim"]
[Black "Kobo, Ori"]
[WhiteFideId "4108116"]
[BlackFideId "2812320"]
[WhiteElo "2487"]
[BlackElo "2420"]
[Result "1-0"]
[Round "11"]
[TimeControl "180+1"]
[Date "2022.08.16"]
[WhiteClock "0:01:17"]
[BlackClock "0:00:39"]

1. e4 {[%clk 0:03:00]}  e5 {[%clk 0:02:59]} 2. Nf3 {[%clk 0:02:49]}  Nc6 {[%clk 0:03:00]} 3. g3 {[%clk 0:02:49]}  Nf6 {[%clk 0:02:58]} 4. d3 {[%clk 0:02:48]}  Bc5 {[%clk 0:02:56]} 5. Bg2 {[%clk 0:02:49]}  O-O {[%clk 0:02:56]} 6. O-O {[%clk 0:02:48]}  d6 {[%clk 0:02:57]} 7. c3 {[%clk 0:02:47]}  Bb6 {[%clk 0:02:54]} 8. a4 {[%clk 0:02:47]}  a5 {[%clk 0:02:53]} 9. Na3 {[%clk 0:02:47]}  h6 {[%clk 0:02:52]} 10. Nc4 {[%clk 0:02:46]}  Ba7 {[%clk 0:02:52]} 11. Be3 {[%clk 0:02:47]}  Be6 {[%clk 0:02:49]} 12. Bxa7 {[%clk 0:02:47]}  Rxa7 {[%clk 0:02:50]} 13. Ne3 {[%clk 0:02:47]}  Re8 {[%clk 0:02:49]} 14. d4 {[%clk 0:02:41]}  Bd7 {[%clk 0:02:41]} 15. d5 {[%clk 0:02:37]}  Ne7 {[%clk 0:02:41]} 16. Nd2 {[%clk 0:02:36]}  Ng6 {[%clk 0:02:30]} 17. b4 {[%clk 0:02:30]}  Qc8 {[%clk 0:02:10]} 18. Ndc4 {[%clk 0:02:25]}  axb4 {[%clk 0:02:10]} 19. cxb4 {[%clk 0:02:26]}  Bh3 {[%clk 0:02:10]} 20. f3 {[%clk 0:02:24]}  Nh7 {[%clk 0:01:59]} 21. a5 {[%clk 0:02:20]}  Bxg2 {[%clk 0:01:57]} 22. Kxg2 {[%clk 0:02:18]}  Qd7 {[%clk 0:01:43]} 23. h4 {[%clk 0:02:06]}  Qb5 {[%clk 0:01:39]} 24. Qd2 {[%clk 0:02:02]}  Ne7 {[%clk 0:01:34]} 25. Rfc1 {[%clk 0:02:00]}  Rf8 {[%clk 0:01:27]} 26. Na3 {[%clk 0:01:43]}  Qd7 {[%clk 0:01:27]} 27. Qc2 {[%clk 0:01:40]}  c6 {[%clk 0:01:25]} 28. Nac4 {[%clk 0:01:32]}  cxd5 {[%clk 0:00:59]} 29. Nb6 {[%clk 0:01:26]}  Qb5 {[%clk 0:00:43]} 30. Nexd5 {[%clk 0:01:22]}  Nxd5 {[%clk 0:00:43]} 31. Nxd5 {[%clk 0:01:21]}  f5 {[%clk 0:00:39]} 32. Ne7+ {[%clk 0:01:17]}  Kh8 {[%clk 0:00:39]} 33. Ng6+ {[%clk 0:01:17]} 1-0


[Site "https://www.chess.com"]

[Event "Titled Tuesday Blitz August 16 Late 2022"]
[White "Djordjevic, Vuk"]
[Black "Romanchuk, Viktor"]
[WhiteFideId "902098"]
[BlackFideId "14109271"]
[WhiteElo "2456"]
[BlackElo "2242"]
[Result "1/2-1/2"]
[Round "11"]
[TimeControl "180+1"]
[Date "2022.08.16"]
[WhiteClock "0:00:05"]
[BlackClock "0:00:07"]

1. Nf3 {[%clk 0:03:00]}  d5 {[%clk 0:02:58]} 2. d3 {[%clk 0:03:00]}  c6 {[%clk 0:02:58]} 3. b3 {[%clk 0:03:00]}  Bf5 {[%clk 0:02:54]} 4. g3 {[%clk 0:02:59]}  e6 {[%clk 0:02:54]} 5. Bg2 {[%clk 0:02:56]}  Nd7 {[%clk 0:02:55]} 6. Bb2 {[%clk 0:02:55]}  Ngf6 {[%clk 0:02:54]} 7. Nh4 {[%clk 0:02:55]}  Bg4 {[%clk 0:02:54]} 8. h3 {[%clk 0:02:56]}  Bh5 {[%clk 0:02:54]} 9. g4 {[%clk 0:02:56]}  Ng8 {[%clk 0:02:47]} 10. Nf3 {[%clk 0:02:45]}  Bg6 {[%clk 0:02:47]} 11. Nbd2 {[%clk 0:02:41]}  Ngf6 {[%clk 0:02:46]} 12. Nh4 {[%clk 0:02:39]}  Bd6 {[%clk 0:02:41]} 13. e3 {[%clk 0:02:37]}  Be5 {[%clk 0:02:19]} 14. Bxe5 {[%clk 0:02:29]}  Nxe5 {[%clk 0:02:20]} 15. f4 {[%clk 0:02:29]}  Ned7 {[%clk 0:02:20]} 16. Ndf3 {[%clk 0:02:22]}  Qa5+ {[%clk 0:01:44]} 17. Qd2 {[%clk 0:02:22]}  Qxd2+ {[%clk 0:01:43]} 18. Kxd2 {[%clk 0:02:22]}  Ng8 {[%clk 0:01:44]} 19. Nd4 {[%clk 0:02:04]}  Ne7 {[%clk 0:01:28]} 20. a4 {[%clk 0:01:49]}  e5 {[%clk 0:01:20]} 21. Ne2 {[%clk 0:01:35]}  f6 {[%clk 0:01:18]} 22. fxe5 {[%clk 0:01:30]}  Nxe5 {[%clk 0:01:07]} 23. d4 {[%clk 0:01:05]}  Nf7 {[%clk 0:01:04]} 24. Nxg6 {[%clk 0:01:05]}  hxg6 {[%clk 0:00:54]} 25. c4 {[%clk 0:01:05]}  O-O-O {[%clk 0:00:49]} 26. Nf4 {[%clk 0:01:01]}  dxc4 {[%clk 0:00:25]} 27. bxc4 {[%clk 0:01:02]}  g5 {[%clk 0:00:20]} 28. Ne6 {[%clk 0:01:01]}  Rdg8 {[%clk 0:00:20]} 29. e4 {[%clk 0:00:42]}  Ng6 {[%clk 0:00:17]} 30. Ra3 {[%clk 0:00:25]}  Nd8 {[%clk 0:00:16]} 31. Nc5 {[%clk 0:00:19]}  Nf4 {[%clk 0:00:15]} 32. Bf1 {[%clk 0:00:19]}  Nde6 {[%clk 0:00:14]} 33. Nxe6 {[%clk 0:00:16]}  Nxe6 {[%clk 0:00:15]} 34. d5 {[%clk 0:00:15]}  Nc5 {[%clk 0:00:15]} 35. Bg2 {[%clk 0:00:14]}  Kc7 {[%clk 0:00:15]} 36. a5 {[%clk 0:00:14]}  Re8 {[%clk 0:00:15]} 37. Re1 {[%clk 0:00:12]}  Re5 {[%clk 0:00:15]} 38. Rae3 {[%clk 0:00:12]}  Rhe8 {[%clk 0:00:14]} 39. Kc3 {[%clk 0:00:12]}  Kd6 {[%clk 0:00:13]} 40. Kd4 {[%clk 0:00:12]}  b6 {[%clk 0:00:12]} 41. axb6 {[%clk 0:00:11]}  axb6 {[%clk 0:00:13]} 42. Rb1 {[%clk 0:00:12]}  Kc7 {[%clk 0:00:13]} 43. Re2 {[%clk 0:00:09]}  Nd7 {[%clk 0:00:12]} 44. Ra2 {[%clk 0:00:06]}  Kd6 {[%clk 0:00:09]} 45. Ra7 {[%clk 0:00:05]}  cxd5 {[%clk 0:00:06]} 46. cxd5 {[%clk 0:00:03]}  Rc8 {[%clk 0:00:07]} 47. Ra6 {[%clk 0:00:02]}  Rc2 {[%clk 0:00:06]} 48. Bf1 {[%clk 0:00:02]}  Re8 {[%clk 0:00:05]} 49. Bb5 {[%clk 0:00:02]}  Rec8 {[%clk 0:00:04]} 50. Bxd7 {[%clk 0:00:02]}  Kxd7 {[%clk 0:00:05]} 51. Ra7+ {[%clk 0:00:03]}  Kd8 {[%clk 0:00:04]} 52. Rxb6 {[%clk 0:00:02]}  R8c4+ {[%clk 0:00:04]} 53. Kd3 {[%clk 0:00:03]}  R4c3+ {[%clk 0:00:05]} 54. Kd4 {[%clk 0:00:03]}  Rc4+ {[%clk 0:00:05]} 55. Kd3 {[%clk 0:00:04]}  R4c3+ {[%clk 0:00:06]} 56. Kd4 {[%clk 0:00:05]}  Rc4+ {[%clk 0:00:07]} 1/2-1/2


[Site "https://www.chess.com"]

[Event "Titled Tuesday Blitz August 16 Late 2022"]
[White "Do Nascimento,Christian Almeida"]
[Black "Kostiukov, Alexandr"]
[WhiteFideId "2143801"]
[BlackFideId "14108100"]
[WhiteElo "2085"]
[BlackElo "2202"]
[Result "1-0"]
[Round "11"]
[TimeControl "180+1"]
[Date "2022.08.18"]
[WhiteClock "0:00:00"]
[BlackClock "0:00:00"]

1. d4 {[%clk 0:00:00]}  g6 {[%clk 0:00:00]} 2. e4 {[%clk 0:00:00]}  Bg7 {[%clk 0:00:00]} 3. Nc3 {[%clk 0:00:00]}  c5 {[%clk 0:00:00]} 4. Nf3 {[%clk 0:00:00]}  cxd4 {[%clk 0:00:00]} 5. Nxd4 {[%clk 0:00:00]}  Nc6 {[%clk 0:00:00]} 6. Be3 {[%clk 0:00:00]}  Nf6 {[%clk 0:00:00]} 7. Bc4 {[%clk 0:00:00]}  Qa5 {[%clk 0:00:00]} 8. O-O {[%clk 0:00:00]}  Qb4 {[%clk 0:00:00]} 9. Bb3 {[%clk 0:00:00]}  Nxe4 {[%clk 0:00:00]} 10. Nxe4 {[%clk 0:00:00]}  Nxd4 {[%clk 0:00:00]} 11. c3 {[%clk 0:00:00]}  Ne2+ {[%clk 0:00:00]} 12. Qxe2 {[%clk 0:00:00]}  Qxe4 {[%clk 0:00:00]} 13. Rfe1 {[%clk 0:00:00]}  O-O {[%clk 0:00:00]} 14. Qd2 {[%clk 0:00:00]}  Qc6 {[%clk 0:00:00]} 15. Bh6 {[%clk 0:00:00]}  e6 {[%clk 0:00:00]} 16. Rad1 {[%clk 0:00:00]}  d5 {[%clk 0:00:00]} 17. Bxg7 {[%clk 0:00:00]}  Kxg7 {[%clk 0:00:00]} 18. Re3 {[%clk 0:00:00]}  f6 {[%clk 0:00:00]} 19. h4 {[%clk 0:00:00]}  h5 {[%clk 0:00:00]} 20. Rg3 {[%clk 0:00:00]}  Kh7 {[%clk 0:00:00]} 21. Bc2 {[%clk 0:00:00]}  f5 {[%clk 0:00:00]} 22. Qg5 {[%clk 0:00:00]}  Rg8 {[%clk 0:00:00]} 23. Re1 {[%clk 0:00:00]}  Qd6 {[%clk 0:00:00]} 24. Qf6 {[%clk 0:00:00]}  Qd8 {[%clk 0:00:00]} 25. Rxg6 {[%clk 0:00:00]}  Qxf6 {[%clk 0:00:00]} 26. Rxf6 {[%clk 0:00:00]}  Bd7 {[%clk 0:00:00]} 27. Rf7+ {[%clk 0:00:00]}  Rg7 {[%clk 0:00:00]} 28. Bxf5+ {[%clk 0:00:00]}  Kg8 {[%clk 0:00:00]} 29. Rxd7 {[%clk 0:00:00]} 1-0


[Site "https://www.chess.com"]

[Event "Titled Tuesday Blitz August 16 Late 2022"]
[White "Ferreira, Vitor Hugo Vieira"]
[Black "Hoffmann, Asa"]
[WhiteFideId "2119765"]
[BlackFideId "2001470"]
[WhiteElo "2168"]
[BlackElo "2117"]
[Result "1-0"]
[Round "11"]
[TimeControl "180+1"]
[Date "2022.08.18"]
[WhiteClock "0:00:00"]
[BlackClock "0:00:00"]

1. e4 {[%clk 0:00:00]}  d6 {[%clk 0:00:00]} 2. d4 {[%clk 0:00:00]}  Nf6 {[%clk 0:00:00]} 3. Nc3 {[%clk 0:00:00]}  c6 {[%clk 0:00:00]} 4. Nf3 {[%clk 0:00:00]}  Bg4 {[%clk 0:00:00]} 5. Be2 {[%clk 0:00:00]}  e6 {[%clk 0:00:00]} 6. Be3 {[%clk 0:00:00]}  d5 {[%clk 0:00:00]} 7. e5 {[%clk 0:00:00]}  Nfd7 {[%clk 0:00:00]} 8. Ng1 {[%clk 0:00:00]}  Bf5 {[%clk 0:00:00]} 9. Bd3 {[%clk 0:00:00]}  Bg6 {[%clk 0:00:00]} 10. Nce2 {[%clk 0:00:00]}  c5 {[%clk 0:00:00]} 11. c3 {[%clk 0:00:00]}  Nc6 {[%clk 0:00:00]} 12. Nf3 {[%clk 0:00:00]}  Qb6 {[%clk 0:00:00]} 13. Rb1 {[%clk 0:00:00]}  cxd4 {[%clk 0:00:00]} 14. cxd4 {[%clk 0:00:00]}  Bb4+ {[%clk 0:00:00]} 15. Nc3 {[%clk 0:00:00]}  O-O {[%clk 0:00:00]} 16. O-O {[%clk 0:00:00]}  Rac8 {[%clk 0:00:00]} 17. Na4 {[%clk 0:00:00]}  Qd8 {[%clk 0:00:00]} 18. Bxg6 {[%clk 0:00:00]}  hxg6 {[%clk 0:00:00]} 19. Ng5 {[%clk 0:00:00]}  Be7 {[%clk 0:00:00]} 20. Qg4 {[%clk 0:00:00]}  Bxg5 {[%clk 0:00:00]} 21. Bxg5 {[%clk 0:00:00]}  Qa5 {[%clk 0:00:00]} 22. Nc3 {[%clk 0:00:00]}  Nb6 {[%clk 0:00:00]} 23. Rfd1 {[%clk 0:00:00]}  Nc4 {[%clk 0:00:00]} 24. Rd3 {[%clk 0:00:00]}  Nd8 {[%clk 0:00:00]} 25. Rh3 {[%clk 0:00:00]}  f6 {[%clk 0:00:00]} 26. Bxf6 {[%clk 0:00:00]}  Rxf6 {[%clk 0:00:00]} 27. exf6 {[%clk 0:00:00]}  Kf7 {[%clk 0:00:00]} 28. fxg7 {[%clk 0:00:00]}  Kxg7 {[%clk 0:00:00]} 29. Rg3 {[%clk 0:00:00]} 1-0


[Site "https://www.chess.com"]

[Event "Titled Tuesday Blitz August 16 Late 2022"]
[White "Fus, Jakub"]
[Black "Lenderman, Aleksandr"]
[WhiteFideId "1193023"]
[BlackFideId "2021285"]
[WhiteElo "2220"]
[BlackElo "2607"]
[Result "1-0"]
[Round "11"]
[TimeControl "180+1"]
[Date "2022.08.16"]
[WhiteClock "0:00:06"]
[BlackClock "0:00:02"]

1. e4 {[%clk 0:03:00]}  e6 {[%clk 0:02:57]} 2. d4 {[%clk 0:02:59]}  d5 {[%clk 0:02:57]} 3. Nc3 {[%clk 0:02:58]}  dxe4 {[%clk 0:02:57]} 4. Nxe4 {[%clk 0:02:57]}  Nd7 {[%clk 0:02:57]} 5. Nf3 {[%clk 0:02:56]}  Ngf6 {[%clk 0:02:58]} 6. Nxf6+ {[%clk 0:02:56]}  Nxf6 {[%clk 0:02:57]} 7. g3 {[%clk 0:02:57]}  b6 {[%clk 0:02:49]} 8. Bb5+ {[%clk 0:02:57]}  Bd7 {[%clk 0:02:49]} 9. a4 {[%clk 0:02:57]}  a6 {[%clk 0:02:46]} 10. Be2 {[%clk 0:02:57]}  Bc6 {[%clk 0:02:46]} 11. O-O {[%clk 0:02:57]}  Be7 {[%clk 0:02:43]} 12. Ne5 {[%clk 0:02:55]}  Bb7 {[%clk 0:02:43]} 13. Bf3 {[%clk 0:02:54]}  Bxf3 {[%clk 0:02:43]} 14. Qxf3 {[%clk 0:02:55]}  Qd5 {[%clk 0:02:43]} 15. Qxd5 {[%clk 0:02:49]}  Nxd5 {[%clk 0:02:43]} 16. c4 {[%clk 0:02:39]}  Nb4 {[%clk 0:02:40]} 17. Be3 {[%clk 0:02:11]}  f6 {[%clk 0:02:35]} 18. Nf3 {[%clk 0:02:09]}  Kf7 {[%clk 0:02:34]} 19. Rfc1 {[%clk 0:02:08]}  a5 {[%clk 0:02:33]} 20. Bd2 {[%clk 0:02:00]}  Rhd8 {[%clk 0:02:30]} 21. Bxb4 {[%clk 0:01:59]}  Bxb4 {[%clk 0:02:28]} 22. Rd1 {[%clk 0:01:55]}  Rd7 {[%clk 0:02:27]} 23. Kf1 {[%clk 0:01:54]}  Rad8 {[%clk 0:02:27]} 24. Ke2 {[%clk 0:01:55]}  g5 {[%clk 0:02:23]} 25. g4 {[%clk 0:01:50]}  h5 {[%clk 0:02:23]} 26. h3 {[%clk 0:01:50]}  Rh8 {[%clk 0:02:23]} 27. Rd3 {[%clk 0:01:45]}  Kg6 {[%clk 0:02:19]} 28. Re3 {[%clk 0:01:42]}  Kf7 {[%clk 0:02:17]} 29. Rd1 {[%clk 0:01:41]}  Bd6 {[%clk 0:02:16]} 30. c5 {[%clk 0:01:29]}  Bf4 {[%clk 0:02:10]} 31. Rc3 {[%clk 0:01:29]}  hxg4 {[%clk 0:02:08]} 32. hxg4 {[%clk 0:01:28]}  bxc5 {[%clk 0:01:55]} 33. Rxc5 {[%clk 0:01:22]}  Rb8 {[%clk 0:01:55]} 34. Rxa5 {[%clk 0:01:22]}  Rxb2+ {[%clk 0:01:55]} 35. Kf1 {[%clk 0:01:22]}  Kg6 {[%clk 0:01:52]} 36. Ra6 {[%clk 0:01:20]}  Rh7 {[%clk 0:01:50]} 37. Kg2 {[%clk 0:01:14]}  Bd6 {[%clk 0:01:26]} 38. Re1 {[%clk 0:01:12]}  Kf7 {[%clk 0:01:26]} 39. Ra7 {[%clk 0:01:03]}  Ra2 {[%clk 0:01:23]} 40. a5 {[%clk 0:00:56]}  Rh8 {[%clk 0:01:23]} 41. Rb1 {[%clk 0:00:52]}  Ke7 {[%clk 0:01:13]} 42. a6 {[%clk 0:00:39]}  f5 {[%clk 0:01:10]} 43. gxf5 {[%clk 0:00:36]}  exf5 {[%clk 0:01:05]} 44. Re1+ {[%clk 0:00:36]}  Kf6 {[%clk 0:01:05]} 45. Ne5 {[%clk 0:00:33]}  g4 {[%clk 0:00:58]} 46. Kg1 {[%clk 0:00:26]}  Ra4 {[%clk 0:00:55]} 47. Nd7+ {[%clk 0:00:20]}  Kg5 {[%clk 0:00:54]} 48. Nc5 {[%clk 0:00:20]}  Bxc5 {[%clk 0:00:30]} 49. dxc5 {[%clk 0:00:20]}  c6 {[%clk 0:00:31]} 50. Kg2 {[%clk 0:00:14]}  Kf4 {[%clk 0:00:19]} 51. Rd1 {[%clk 0:00:09]}  Ra5 {[%clk 0:00:18]} 52. Rd4+ {[%clk 0:00:04]}  Ke5 {[%clk 0:00:16]} 53. Rc4 {[%clk 0:00:05]}  Kd5 {[%clk 0:00:09]} 54. Rc1 {[%clk 0:00:05]}  Ke5 {[%clk 0:00:08]} 55. Re7+ {[%clk 0:00:04]}  Kf4 {[%clk 0:00:08]} 56. a7 {[%clk 0:00:04]}  Ra8 {[%clk 0:00:08]} 57. Rc4+ {[%clk 0:00:04]}  Kg5 {[%clk 0:00:08]} 58. Rg7+ {[%clk 0:00:04]}  Kf6 {[%clk 0:00:08]} 59. Rc7 {[%clk 0:00:05]}  R8xa7 {[%clk 0:00:07]} 60. Rxc6+ {[%clk 0:00:05]}  Kg5 {[%clk 0:00:08]} 61. Rc8 {[%clk 0:00:05]}  Ra2 {[%clk 0:00:07]} 62. c6 {[%clk 0:00:05]}  f4 {[%clk 0:00:03]} 63. c7 {[%clk 0:00:05]}  f3+ {[%clk 0:00:02]} 64. Kg3 {[%clk 0:00:06]}  Rxf2 {[%clk 0:00:02]} 65. Rg8+ {[%clk 0:00:06]} 1-0


[Site "https://www.chess.com"]

[Event "Titled Tuesday Blitz August 16 Late 2022"]
[White "Gomez Ledo, Roberto Carlos"]
[Black "Proudian, Armen"]
[WhiteFideId "3507076"]
[BlackFideId "2130734"]
[WhiteElo "2379"]
[BlackElo "2380"]
[Result "0-1"]
[Round "11"]
[TimeControl "180+1"]
[Date "2022.08.16"]
[WhiteClock "0:00:01"]
[BlackClock "0:00:06"]

1. d4 {[%clk 0:03:00]}  Nf6 {[%clk 0:02:45]} 2. Bf4 {[%clk 0:03:00]}  e6 {[%clk 0:02:44]} 3. e3 {[%clk 0:03:00]}  d5 {[%clk 0:02:45]} 4. Nd2 {[%clk 0:02:59]}  Bd6 {[%clk 0:02:44]} 5. Bg3 {[%clk 0:02:59]}  b6 {[%clk 0:02:42]} 6. Bb5+ {[%clk 0:02:59]}  c6 {[%clk 0:02:40]} 7. Bd3 {[%clk 0:02:59]}  Bb7 {[%clk 0:02:40]} 8. Ngf3 {[%clk 0:02:50]}  O-O {[%clk 0:02:39]} 9. e4 {[%clk 0:02:48]}  dxe4 {[%clk 0:02:23]} 10. Nxe4 {[%clk 0:02:49]}  Be7 {[%clk 0:02:19]} 11. Qe2 {[%clk 0:02:41]}  c5 {[%clk 0:02:13]} 12. dxc5 {[%clk 0:02:38]}  Nbd7 {[%clk 0:02:06]} 13. cxb6 {[%clk 0:02:30]}  Qxb6 {[%clk 0:02:06]} 14. O-O {[%clk 0:02:06]}  Nxe4 {[%clk 0:02:05]} 15. Bxe4 {[%clk 0:02:06]}  Bxe4 {[%clk 0:02:06]} 16. Qxe4 {[%clk 0:02:06]}  Qxb2 {[%clk 0:02:07]} 17. Rab1 {[%clk 0:01:50]}  Qa3 {[%clk 0:02:03]} 18. Qb7 {[%clk 0:01:43]}  Nb6 {[%clk 0:01:43]} 19. Ne5 {[%clk 0:01:28]}  Bf6 {[%clk 0:01:29]} 20. Rfd1 {[%clk 0:00:55]}  Qxa2 {[%clk 0:01:24]} 21. c4 {[%clk 0:00:48]}  Bxe5 {[%clk 0:01:17]} 22. Bxe5 {[%clk 0:00:48]}  Qxc4 {[%clk 0:01:11]} 23. Qf3 {[%clk 0:00:36]}  Qc2 {[%clk 0:00:52]} 24. Rb4 {[%clk 0:00:27]}  Rad8 {[%clk 0:00:50]} 25. Ra1 {[%clk 0:00:14]}  Qf5 {[%clk 0:00:32]} 26. Qxf5 {[%clk 0:00:12]}  exf5 {[%clk 0:00:33]} 27. h4 {[%clk 0:00:10]}  Rd7 {[%clk 0:00:27]} 28. Bd4 {[%clk 0:00:09]}  Nd5 {[%clk 0:00:20]} 29. Rba4 {[%clk 0:00:08]}  Ra8 {[%clk 0:00:18]} 30. Rxa7 {[%clk 0:00:06]}  Raxa7 {[%clk 0:00:18]} 31. Rxa7 {[%clk 0:00:06]}  Rxa7 {[%clk 0:00:18]} 32. Bxa7 {[%clk 0:00:07]}  g6 {[%clk 0:00:16]} 33. g3 {[%clk 0:00:07]}  f4 {[%clk 0:00:16]} 34. Kg2 {[%clk 0:00:06]}  fxg3 {[%clk 0:00:13]} 35. fxg3 {[%clk 0:00:07]}  f5 {[%clk 0:00:14]} 36. Bd4 {[%clk 0:00:07]}  Kf7 {[%clk 0:00:14]} 37. Kf3 {[%clk 0:00:07]}  h5 {[%clk 0:00:11]} 38. Bb2 {[%clk 0:00:06]}  Ke6 {[%clk 0:00:12]} 39. Ba1 {[%clk 0:00:06]}  Nf6 {[%clk 0:00:08]} 40. Bd4 {[%clk 0:00:03]}  Nd7 {[%clk 0:00:07]} 41. Kf4 {[%clk 0:00:03]}  Kf7 {[%clk 0:00:06]} 42. Kg5 {[%clk 0:00:02]}  Nf8 {[%clk 0:00:05]} 43. Kh6 {[%clk 0:00:01]}  Ne6 {[%clk 0:00:06]} 0-1


[Site "https://www.chess.com"]